Cogmind - Beta 16 --- EXPLORER MODE // 2025.12.02 @ 08:22:37 Player: K.K.Y. Result: Destroyed by G-47 Trooper with Particle Gun Performance ------------- Evolutions (0) 0 Regions Visited (3) 600 Robots Destroyed (39) 195 Value Destroyed (978) 978 Prototype IDs (12) 240 Alien Tech Used (0) 0 Bonus (90) 90 TOTAL SCORE: 2103 Bonus ------- Follower Combat Kills 90 Cogmind --------- Core Integrity 0/250 Matter 300/300 Energy 170/170 System Corruption 0% Temperature Cool (9) Movement Treading (240) Ox1 Location -10/Subcaves Parts ------- > --- POWER (1) -------- Makeshift Power Source > --- PROPULSION (3) --- Light Treads > --- UTILITY (2) ------ Medium Storage Unit Utility Shielding > --- WEAPON (2) ------- Makeshift Hammer Makeshift Hammer > --- INVENTORY (10) --- Improved Heat Sink Huge Storage Unit Improved Terrain Scanner Scrap Shield Decoy Drone Bay Slug Cannon Mining Laser Makeshift Axe Peak State ------------ > --- POWER ------------ Makeshift Power Source > --- PROPULSION ------- Light Treads Light Treads Light Treads > --- UTILITY ---------- Medium Storage Unit Utility Shielding > --- WEAPON ----------- Makeshift Hammer Makeshift Axe > --- INVENTORY -------- Ion Engine Improved Heat Sink Huge Storage Unit Improved Terrain Scanner Scrap Shield Decoy Drone Bay Slug Cannon Mining Laser [Rating: 20] Favorites ----------- Power Ion Engine Engine Ion Engine Propulsion Light Treads Treads Light Treads Utility Medium Storage Unit Storage Medium Storage Unit Protection Utility Shielding Weapon Assault Rifle Energy Gun Riot Gun Ballistic Gun Assault Rifle Impact Weapon Makeshift Hammer Slashing Weapon Makeshift Axe Build | -11 -10 -10 -10 ------- Run | Yrd Mat Min Sub Slots Evolved 1 | . 1 . . Power . | . . . . Propulsion 1 | . 1 . . Utility . | . . . . Weapon . | . . . . Parts Attached 19 | 5 3 1 10 Power 3 | . 1 . 2 Engine 3 | . 1 . 2 Core . | . . . . Reactor . | . . . . Propulsion 5 | 2 1 . 2 Treads 5 | 2 1 . 2 Leg . | . . . . Wheel . | . . . . Hover . | . . . . Flight . | . . . . Utility 3 | 1 1 . 1 Device . | . . . . Storage 1 | 1 . . . Processor . | . . . . Hackware . | . . . . Protection 2 | . 1 . 1 Artifact . | . . . . Weapon 8 | 2 . 1 5 Energy Gun 1 | . . . 1 Energy Cannon . | . . . . Ballistic Gun 4 | 2 . 1 1 Ballistic Cannon . | . . . . Launcher . | . . . . Special Weapon . | . . . . Impact Weapon 2 | . . . 2 Slashing Weapon 1 | . . . 1 Piercing Weapon . | . . . . Special Melee Weapon . | . . . . Unidentified Prototypes . | . . . . Parts Lost 7 | . . 1 6 Power 1 | . . . 1 Propulsion 3 | . . . 3 Utility 1 | . . . 1 Weapon 2 | . . 1 1 Highest Loss Streak 2 | . . 1 2 To Critical Strikes . | . . . . Average Backups 7 | 2 6 7 8 Power . | . . 1 . Propulsion . | . . 1 . Utility 4 | 1 2 4 4 Weapon 2 | . 1 1 2 Tool/Special . | . . . . Unused Backups 8 | . . . 8 Power 1 | . . . 1 Propulsion . | . . . . Utility 5 | . . . 5 Weapon 2 | . . . 2 Tool/Special . | . . . . Average Slot Usage (%) 96 | . 98 99 94 Engine 11 | . 11 12 11 Treads 33 | . 36 37 32 Storage 12 | . 12 12 12 Protection 11 | . 11 12 11 Energy Gun 1 | . . . 2 Ballistic Gun 12 | . 25 24 5 Impact Weapon 10 | . . . 16 Peak Build Rating 20 | 5 8 10 20 Average Rating 13 | 4 7 9 16 On Entrance 5 | . 5 8 10 Avg Prop Armor Cover (%) . | . . . . Naked Turns . | . . . . Heaviest Build 24 | 14 22 22 24 Greatest Support 60 | 40 60 60 60 Greatest Overweight (x) 1 | . . . 1 Average Overweight (x) . | . . . . Largest Inventory Capacity 10 | 10 10 10 10 Average Capacity 9 | 9 10 10 10 Most Carried 10 | 5 7 9 10 Average Carried 8 | 2 6 7 9 Final Capacity 10 | 10 10 10 10 Final Carried 10 | 4 7 9 10 Class Distribution -------------------- 100% | Hacker-Mutant Dominant Class ---------------- Hacker-Mutant | -10/Materials Hacker-Mutant | -10/Mines Hacker-Mutant | -10/Subcaves Resources | -11 -10 -10 -10 ----------- Run | Yrd Mat Min Sub Matter Collected 907 | 161 352 136 258 Remotely . | . . . . Salvage Created 1221 | . 528 126 567 Parts 59 | . 31 8 20 Haulers Intercepted 2 | . 2 . . Recyclers Shooed 1 | . 1 . . Parts Field Recycled . | . . . . Retrieved Matter . | . . . . Parts Self-Destructed . | . . . . Prevented . | . . . . Parts Restored . | . . . . Kills | -11 -10 -10 -10 ------- Run | Yrd Mat Min Sub Combat Hostiles Destroyed 30 | . 8 4 18 Melee 5 | . . . 5 Guns 15 | . 8 4 3 Classes Destroyed 11 | . 7 2 2 Builder 1 | . 1 . . Tunneler 4 | . 2 2 . Hauler 2 | . 2 . . Recycler 1 | . 1 . . Turret 2 | . . . 2 Watcher 2 | . 2 . . Swarmer 8 | . 2 . 6 Grunt 6 | . 6 . . Demolisher 1 | . . 1 . Subdweller 12 | . . . 12 Assembled 3 | . . 3 . Best Kill Streak 6 | . 6 3 6 Combat Bots Only 4 | . 3 3 4 Max Kills in Single Turn 1 | . 1 1 1 Gunslinging . | . . . . Exploded . | . . . . Melee 1 | . . . 1 Uniques/NPCs Destroyed . | . . . . Combat | -11 -10 -10 -10 -------- Run | Yrd Mat Min Sub Hostile Shots Fired 198 | . 36 15 147 Missed 59 | . 12 2 45 Hits 139 | . 24 13 102 Melee 3 | . . 3 . Projectile 136 | . 24 10 102 AOE 5 | . . 5 . Critical Strikes 5 | . . 2 3 Actively Blocked 1 | . . . 1 Part Disruptions 1 | . . 1 . Damage Taken 1295 | . 182 236 877 Core 251 | . 23 60 168 Absorbed by Shields . | . . . . Redirected to Shielding 6 | . . . 6 Ignored by Resistances 804 | . 113 138 553 Core Remaining (%) 100 | 100 . . . Volleys Fired 84 | . 49 11 24 Largest 2 | . 2 2 2 Hottest 50 | . 40 40 50 Shots Fired 165 | . 98 20 47 Gun 165 | . 98 20 47 Cannon . | . . . . Launcher . | . . . . Special . | . . . . Kinetic 164 | . 98 20 46 Thermal . | . . . . Explosive . | . . . . Electromagnetic 1 | . . . 1 Robot Hit Streak 34 | . 12 18 34 Robot Miss Streak 2 | . 2 1 1 Penetration Max . | . . . . Secondary Targets 1 | . . 1 . Max Gunslinging Chain 1 | . . 1 . Shots Hit Robots 157 | . 77 18 62 Core Hits 50 | . 28 12 10 Critical Kills 1 | . . . 1 Critical Parts Destroyed 5 | . . . 5 Critical Strikes 7 | . . . 7 Smash 7 | . . . 7 Melee Attacks 107 | . . . 107 Impact 107 | . . . 107 Slashing . | . . . . Piercing . | . . . . Sneak Attacks . | . . . . Combat Hostiles . | . . . . Follow-up Attacks . | . . . . Damage Inflicted 3483 | . 970 237 2276 Guns 1499 | . 970 237 292 Cannons . | . . . . Explosions . | . . . . Melee 1984 | . . . 1984 Ramming . | . . . . Kinetic 1499 | . 970 237 292 Thermal . | . . . . Explosive . | . . . . Electromagnetic . | . . . . Impact 1984 | . . . 1984 Slashing . | . . . . Piercing . | . . . . Highest Corruption . | . . . . Average Corruption . | . . . . Corruption Purged . | . . . . Corruption Blocked . | . . . . Overload Shots . | . . . . Overflow Damage 452 | . . . 452 Projectiles . | . . . . Explosions . | . . . . Melee 452 | . . . 452 Knockbacks 8 | . . . 8 Impact 8 | . . . 8 Kinetic . | . . . . Secondary . | . . . . Self-Inflicted Damage . | . . . . Shots . | . . . . Rammed . | . . . . Targets Rammed . | . . . . Kicked . | . . . . Crushed . | . . . . Highest Temperature 24 | . 15 24 . Average Temperature 7 | . 5 12 . Received Heat Transfer 579 | . 141 60 378 Siege Activations . | . . . . Martial Activations . | . . . . Shielding Activations . | . . . . Robots Disrupted . | . . . . Combat Hostiles . | . . . . Robots Corrupted 10 | . . . 10 Combat Hostiles 10 | . . . 10 Parts Fried 12 | . . . 12 Impact Corruptions 17 | . . . 17 Robots Melted . | . . . . Combat Hostiles . | . . . . Parts Melted . | . . . . Heat Transferred . | . . . . Parts Sabotaged . | . . . . Parts Stolen . | . . . . Parts Stripped . | . . . . Power Chain Reactions . | . . . . Alert | -11 -10 -10 -10 ------- Run | Yrd Mat Min Sub Maximum Alert Level . | . . . . Low Security (%) 100 | 100 100 100 . Level 1 . | . . . . Level 2 . | . . . . Level 3 . | . . . . Level 4 . | . . . . Level 5 . | . . . . High Security . | . . . . Max Security . | . . . . Peak Influence 102 | . 102 30 . Initial . | . . . . Average 7 | . 17 . . Influence Increases 568 | . 253 40 275 Destroy 0b10 Robot/C 340 | . 160 20 160 Destroy 0b10 Robot/NC 50 | . 40 10 . Destroy Leader 58 | . 38 10 10 Lose Combat Pursuer 120 | . 15 . 105 Influence Decreases 568 | . 253 40 275 Time Decay 548 | . 253 40 255 Lost Part 20 | . . . 20 Squads Dispatched . | . . . . Investigation . | . . . . Extermination . | . . . . Reinforcement . | . . . . Assault . | . . . . Garrison . | . . . . Intercept . | . . . . Searches Triggered . | . . . . Construction Impeded . | . . . . Haulers Reinforced . | . . . . Active Scanning Responses . | . . . . Cargo Convoy Interrupts . | . . . . Stealth | -11 -10 -10 -10 --------- Run | Yrd Mat Min Sub Distress Signals . | . . . . Communications Jammed . | . . . . Distress Signals . | . . . . Times Spotted 65 | . 11 21 33 Peak Tracking Total 15 | . 3 15 4 Tactical Retreats 9 | . 1 1 7 Traps | -11 -10 -10 -10 ------- Run | Yrd Mat Min Sub Traps Triggered 1 | . 1 . . Indirectly . | . . . . Trap Hack Attempts . | . . . . Triggered . | . . . . Disarmed . | . . . . Reprogrammed . | . . . . Reused . | . . . . Traps Extracted . | . . . . Installed . | . . . . Triggered . | . . . . Machines | -11 -10 -10 -10 ---------- Run | Yrd Mat Min Sub Machines Disabled 1 | . . . 1 Max in Single Turn 1 | . . . 1 Machines Repaired . | . . . . Machines Dismantled . | . . . . Machines Sabotaged . | . . . . Overloaded Fab Kills . | . . . . Hacking | -11 -10 -10 -10 --------- Run | Yrd Mat Min Sub Machines Accessed 5 | . 3 1 1 Terminals 3 | . 3 . . Fabricators . | . . . . Repair Stations . | . . . . Recycling Units . | . . . . Scanalyzers . | . . . . Garrison Access . | . . . . Total Hacks 10 | . 8 1 1 Successful 9 | . 7 1 1 Failed 1 | . 1 . . Catastrophic . | . . . . Database Lockouts . | . . . . Manual 4 | . 4 . . Terminals 8 | . 8 . . Fabricators . | . . . . Repair Stations . | . . . . Recycling Units . | . . . . Scanalyzers . | . . . . Garrison Access . | . . . . Terminal Hacks 6 | . 4 1 1 Open Door 1 | . . 1 . Emergency Access Points 1 | . 1 . . Terminal Index 1 | . 1 . . Maintenance Status 1 | . 1 . . Zone Layout 1 | . 1 . . Proto ID Catalog 1 | . . . 1 Fabricator Hacks . | . . . . Repair Station Hacks . | . . . . Recycling Unit Hacks . | . . . . Scanalyzer . | . . . . Garrison Access Hacks . | . . . . Unauthorized Hacks 3 | . 3 . . Terminals 3 | . 3 . . Botnet 3 | . 3 . . Fabricators . | . . . . Repair Stations . | . . . . Recycling Units . | . . . . Scanalyzers . | . . . . Garrison Access . | . . . . Data Cores Recovered . | . . . . Used . | . . . . Hacking Detections 2 | . 2 . . Full Trace Events . | . . . . Feedback Events . | . . . . Feedback Blocked . | . . . . Robot Schematics Acquired . | . . . . Robots Built . | . . . . Authchips . | . . . . Time . | . . . . Total Robot Build Rating . | . . . . Part Schematics Acquired . | . . . . Parts Built . | . . . . Authchips . | . . . . Time . | . . . . Total Part Build Rating . | . . . . Part Studies Acquired . | . . . . Parts Repaired . | . . . . Time . | . . . . Parts Recycled . | . . . . Recycled Matter . | . . . . Retrieved Matter . | . . . . Retrieved Components . | . . . . Parts Scanalyzed . | . . . . Part Schematics Acquired . | . . . . Parts Damaged . | . . . . Bothacking | -11 -10 -10 -10 ------------ Run | Yrd Mat Min Sub Used RIF Installer . | . . . . Robots Hacked . | . . . . Non-combat . | . . . . Combat . | . . . . Robot Hacks Applied . | . . . . Relay Couplers Released . | . . . . Fabnet Peak Effective % . | . . . . Robots Rewired . | . . . . Allies Hacked . | . . . . Hacks Repelled . | . . . . Allies | -11 -10 -10 -10 -------- Run | Yrd Mat Min Sub Total Allies 3 | . . 3 . Largest Group 3 | . . 3 3 Highest-Rated Group 40 | . . 40 40 Highest-Rated Ally 16 | . . 16 16 Total Orders . | . . . . Ally Attacks 16 | . . . 16 Total Damage 206 | . . . 206 Kills 3 | . . . 3 Allies Corrupted . | . . . . Allies Melted . | . . . . Intel | -11 -10 -10 -10 ------- Run | Yrd Mat Min Sub Active Infowar (turns) . | . . . . Robot Analysis Total . | . . . . Derelict Logs Recovered 1 | . . . 1 Drone Launches . | . . . . Drone Recoveries . | . . . . Exploration | -11 -10 -10 -10 ------------- Run | Yrd Mat Min Sub Turns Passed 6001 | 85 1017 1216 3683 Spaces Moved 3051 | 51 468 578 1954 Core 10 | 10 . . . Treads 3041 | 41 468 578 1954 Legs . | . . . . Wheels . | . . . . Hover . | . . . . Flight . | . . . . Fastest Speed 50 | 50 160 160 160 Average Speed 165 | 138 160 160 168 Slowest Speed 240 | 160 160 160 240 Overloaded Moves . | . . . . Propulsion Burnouts . | . . . . Robots Hopped . | . . . . Potential Cave-ins . | . . . . Cave-ins Triggered . | . . . . Exploration Rate (%) 60 | 4 55 100 84 Regions Visited 3 Branch Regions 2 Pre-discovered Areas . | . . . . Known Exits Taken 3 | 1 1 1 . Unknown Exits Taken . | . . . . Scrap Searched 8 | . . 1 7 Spaces Dug 12 | . . . 12 Terrain Destroyed 12 | . . . 12 Melee 12 | . . . 12 Projectile . | . . . . AOE . | . . . . Terrain Rammed . | . . . . Walls Destroyed . | . . . . Machines Disabled . | . . . . Actions | -11 -10 -10 -10 --------- Run | Yrd Mat Min Sub Total 3751 | 66 638 849 2198 Wait 464 | 2 113 256 93 Move 3048 | 50 467 577 1954 Hop . | . . . . Pick Up 25 | 9 6 3 7 Fast Attach 3 | . . . 3 Attach 13 | 5 3 2 3 Detach . | . . . . Swap 5 | . . . 5 Drop 8 | . . . 8 Fire 84 | . 49 11 24 Melee 101 | . . . 101 Ram . | . . . . Kick . | . . . . Crush . | . . . . Escape Stasis . | . . . . Rewire . | . . . . Trap . | . . . . Miscellaneous . | . . . . Route ------- -11/Scrapyard -10/Materials (discovered 3 exits: *Mat / *Min / *Sub) -10/Mines (discovered 3 exits: *Mat x2 / *Sub) -10/Subcaves (discovered 3 exits: *Mat x2 / *Rec) History --------- Turn | Location | Event 7 | -11/Scrapyard | Identified exit to Materials 7 | -11/Scrapyard | Discovered exit to Materials (range 15) 86 | -11/Scrapyard | Entered Materials 86 | -10/Materials | Evolved 1 slot: Propulsion x1 146 | -10/Materials | Identified exit to Subcaves 146 | -10/Materials | Discovered exit to Subcaves (range 16) 316 | -10/Materials | Build established: Hacker-Mutant 586 | -10/Materials | Derelicts attacked the area 704 | -10/Materials | Identified exit to Materials 704 | -10/Materials | Discovered exit to Materials (range 12) 1026 | -10/Materials | Identified exit to Mines 1026 | -10/Materials | Discovered exit to Mines (range 15) 1103 | -10/Materials | Entered Mines 1104 | -10/Mines | Assembled infested the area 1109 | -10/Mines | Assisted by a Guerilla fighting off Assembled 1232 | -10/Mines | Discovered exit to Materials (range 6) 1256 | -10/Mines | Assisted by bots powering up and referring to "LRC-V3" 1362 | -10/Mines | Discovered exit to Materials (range 7) 1516 | -10/Mines | Found the Drone Emporium 1523 | -10/Mines | Found Prototype Device 2311 | -10/Mines | Discovered exit to Subcaves (range 6) 2319 | -10/Mines | Entered Subcaves 2319 | -10/Subcaves | Accompanied by 3 allies 2320 | -10/Subcaves | Approached by a straggling Scientist 2321 | -10/Subcaves | Ambushed by Subdwellers from Twisted Machinery 2397 | -10/Subcaves | Disturbed a concealed Subdweller 2578 | -10/Subcaves | Visited 4L-MR0's lab 2881 | -10/Subcaves | Identified exit to Materials 2881 | -10/Subcaves | Discovered exit to Materials (range 13) 3012 | -10/Subcaves | A swath of the cavern ceiling suddenly collapsed 3148 | -10/Subcaves | Core integrity fell below 50% 3418 | -10/Subcaves | Shifting Twisted Machinery released Slug Cannon 3579 | -10/Subcaves | A swath of the cavern ceiling suddenly collapsed 3903 | -10/Subcaves | Shifting Twisted Machinery released Flamer 3904 | -10/Subcaves | Discovered exit to Materials (range 7) 3992 | -10/Subcaves | Shifting Twisted Machinery released Piercing Trap 4077 | -10/Subcaves | Shifting Twisted Machinery released Sub. Beam Cannon 4707 | -10/Subcaves | Learned 4 Materials zone layouts 5332 | -10/Subcaves | Identified exit to Recycling 5332 | -10/Subcaves | Discovered exit to Recycling (range 8) 5976 | -10/Subcaves | Core integrity fell below 20% 6002 | -10/Subcaves | Destroyed by G-47 Trooper with Particle Gun Last Messages --------------- 05358_ S-10 Pest destroyed. 05360_ Destroyed Flight Unit. 05360_ S-10 Pest system corrupted by crushing effect. 05360_ S-10 Pest destroyed. 05377_ Destroyed Autobeam. 05377_ Autobeam Turret system corrupted by crushing effect. 05380_ Autobeam Turret destroyed. 05382_ Autobeam Turret suffers critical hit (Smash). 05382_ Autobeam Turret destroyed. 05486_ Searching scrap... 05486_ Found Sub. Optics. 05486_ Found 60 Matter. 05488_ Searching scrap... 05488_ Found Mak. Power Source. 05488_ Found 50 Matter. 05491_ Acquired Mak. Power Source. 05492_ Acquired 10 matter. Map ----- +----------------------------------------------------+ | ?????# [ ##??????## ##???## ## #???? | | ????## ##??????# #??## #???? | | ????# #??????## #?## ##???? | | ????# #??????# ### ####????? | | ????## ### #??????## ###???????? | | ?????##??## #??????## # ####?????????? | | ??????????# ########??????# ####????????????? | | ??????????# #####?????????????# ##??????????????? | | ??????????###?????????????????## ##?????????????? | | ??????????????????????????????# ##????????????? | | ??????????????????????????????### ##???????????? | | ????????????????????????????????# ##??????????? | | ???????????????????######??????## ##?????????? | | ???????????????????# ##?????# ##????????? | | ???????????????????# ##????# ##???????? | | ????????????????????# ####?# #???????? | | ??????????????????### ####### ##???????? | | ?????????????????## ##???# #????????? | | ???????????????### ] ##??# ##????????? | | ???????????????# #?## #?????????? | | ???????????????# ###?# ##?????????? | | ???????????????# #####???# ##??????????? | | ???????????????## ##?####### #???????????? | | ????????????????# #### #???????????? | | ???????????????## g g ## ###???????????? | | ???????????????# @% ##### #?????????????? | | ??????????????# [ ##?## ##????#???????? | | ?????????? ### #??# #### #???????? | | ???????? #?# ##?# #???????? | | ????????? ### ### ##???????? | | ???????? ## ##????????? | | ????????? ### #?????????? | | ????????? ###??# #?????????? | | ?????????? #????# ## ##?????????? | | ?????????? ????# ## #??????????? | | ??????????? ????# ## #??????????? | | ????????????? ?????# ## #?????????? | | ??????????????? ??????## ?# #?????????? | | ???????????????????????##?# #?????????? | | ??????????????????????????# ##?????????? | | ??????????????????????????## #??????????? | | ???????????????????????????## #??????????? | | ????????????????????????????##### ??????????? | | ????????????????????????????????##### #?????????? | | ?????????????????????????????????????# #?????????? | | ??????????????????????????????????????#??????????? | | ?????????????????????????????????????????????????? | | ?????????????????????????????????????????????????? | | ?????????????????????????????????????????????????? | | ?????????????????????????????????????????????????? | +----------------------------------------------------+ Best States ------------- Heat Dissipation 25 Energy Generation 15 Energy Capacity 250 Matter Stores 300 Matter Capacity 300 Sight Range 16 Terrain Scan Density 10 Armor Coverage 150 Resistance: KI 35 Resistance: TH 35 Resistance: EX 35 Resistance: EM 35 Resistance: I 35 Resistance: S 35 Resistance: P 35 Utility Shielding 33 Evasion (%) 50 Recoil Reduction 3 Offensive Hacking 20 Item Schematics ----------------- None Robot Schematics ------------------ None Fabricated ------------ Nothing Repaired ---------- Nothing Studied --------- None Alien Tech Used ----------------- None Achievements -------------- None Challenges ------------ None Game ------ Seed ImpactDisassembledDrive Manual? 0 Play Time 00:28:51 Cumulative 151.5 hours Start 2025.12.02 @ 07:51:07 End 2025.12.02 @ 08:22:37 Sessions 1 Manual Loads 0 Difficulty Explorer Special Mode None Game No. 189 Rogue 0 Adventurer 0 Explorer 189 Win Type - Total 0 Types 0/0/0/0/0/0/0/0/0/0 Lore% 70 Gallery% 66 Achievement% 52 Wizard Run 0 Options --------- Layout 1 ASCII 0 Keyboard 0 Movement Mouse Keybinds 0 Fullscreen 1 Font 24/Smallcaps Map View 50x35 Zoom Use 0% Tactical HUD 1 Map Filters NONE Filters NONE Steam 1 RUN: 1a8b3e37-b7ca-4641-9ed3-a80c3d9a5315